Cogmind - Beta 10.2 @@@ ROGUE MODE // 2021.03.23 @ 15:26:51 Player: ChromeKnight Result: Destroyed by G-47 Trooper with Particle Gun Performance ------------- Evolutions (2) 1000 Regions Visited (4) 800 Robots Destroyed (70) 350 Value Destroyed (2069) 2069 Prototype IDs (2) 40 Alien Tech Used (0) 0 Bonus (35) 35 TOTAL SCORE: 4294 Bonus ------- Follower Combat Kills 35 Cogmind --------- Core Integrity 0/550 Matter 300/300 Energy 100/100 System Corruption 2% Temperature Cool (9) Movement Core (450) Ox8 Location -8/Materials Parts ------- > --- POWER (1) -------- (None) > --- PROPULSION (4) --- (None) > --- UTILITY (4) ------ Large Storage Unit Improved Weapon Shielding Improved Weapon Shielding > --- WEAPON (2) ------- Great Maul Mining Claw > --- INVENTORY (10) --- Micro Nuclear Core Micro Nuclear Core Micro Nuclear Core Hover Unit Hover Unit Hover Unit Improved Hover Unit Airjet Improved Sensor Array Heavy Flail Peak State ------------ > --- POWER ------------ Micro Nuclear Core > --- PROPULSION ------- Aluminum Leg Aluminum Leg Carbon-fiber Leg Hover Unit > --- UTILITY ---------- Improved Heat Sink Large Storage Unit Layered Light Armor Plating Layered Light Armor Plating > --- WEAPON ----------- Heavy Ion Cannon Heavy Ion Cannon > --- INVENTORY -------- Micro Nuclear Core Micro Nuclear Core Micro Nuclear Core Hover Unit Hover Unit Hover Unit Improved Hover Unit Airjet Mining Claw Mining Claw [Rating: 32] Favorites ----------- Power Light Deuterium Engine Engine Light Deuterium Engine Power Core Micro Nuclear Core Propulsion Aluminum Leg Leg Aluminum Leg Wheel Wheel Hover Unit Hover Unit Flight Unit Improved Flight Unit Utility Large Storage Unit Device Improved Heat Sink Storage Large Storage Unit Protection Light Armor Plating Weapon Spread Laser Energy Gun Spread Laser Energy Cannon Heavy Ion Cannon Ballistic Gun Light Assault Rifle Impact Weapon Great Maul Slashing Weapon Mining Claw Build | -11 -10 -9 -9 -8 ------- Run | Scr Mat Mat Min Mat Slots Evolved 4 | . . 2 . 2 Power . | . . . . . Propulsion 2 | . . 1 . 1 Utility 2 | . . 1 . 1 Weapon . | . . . . . Parts Attached 91 | 7 3 23 15 43 Power 9 | 1 . 3 . 5 Engine 6 | 1 . 3 . 2 Core 3 | . . . . 3 Reactor . | . . . . . Propulsion 32 | 2 2 8 4 16 Treads . | . . . . . Leg 25 | 2 2 7 4 10 Wheel 5 | . . . . 5 Hover 1 | . . . . 1 Flight 1 | . . 1 . . Utility 22 | 1 1 5 3 12 Device 5 | . . 2 2 1 Storage 3 | 1 1 . . 1 Processor . | . . . . . Hackware . | . . . . . Protection 14 | . . 3 1 10 Artifact . | . . . . . Weapon 28 | 3 . 7 8 10 Energy Gun 10 | 1 . 4 2 3 Energy Cannon 2 | . . . . 2 Ballistic Gun 10 | 2 . 3 5 . Ballistic Cannon . | . . . . . Launcher . | . . . . . Special Weapon . | . . . . . Impact Weapon 3 | . . . . 3 Slashing Weapon 3 | . . . 1 2 Piercing Weapon . | . . . . . Special Melee Weapon . | . . . . . Unidentified Prototypes 2 | . . 2 . . Parts Lost 25 | . . 1 3 21 Power 2 | . . . . 2 Propulsion 14 | . . 1 . 13 Utility 4 | . . . 1 3 Weapon 5 | . . . 2 3 Highest Loss Streak 5 | . . 1 3 5 Average Slot Usage (%) 90 | . 85 90 97 85 Engine 8 | . 14 11 11 4 Core 1 | . . . . 3 Leg 25 | . 28 30 33 15 Wheel 2 | . . . . 8 Device 7 | . . 7 11 7 Storage 10 | . 14 11 11 9 Protection 11 | . . 7 9 18 Energy Gun 10 | . . 16 17 1 Ballistic Gun 4 | . 28 4 3 1 Impact Weapon 1 | . . . . 5 Slashing Weapon 3 | . . . . 8 Naked Turns . | . . . . . Heaviest Build 45 | 12 24 33 32 45 Greatest Support 42 | 20 20 30 35 42 Greatest Overweight (x) 13 | 2 1 1 1 13 Average Overweight (x) . | . . . . . Largest Inventory Capacity 12 | 6 12 10 10 10 Average Capacity 9 | 5 7 10 10 10 Most Carried 10 | 1 6 10 10 10 Average Carried 8 | . 3 9 9 9 Final Capacity 10 | 6 10 10 10 10 Final Carried 10 | 1 6 10 10 10 Class Distribution -------------------- 57% | Scavenger-Mutant 42% | Mutant Dominant Class ---------------- Mutant | -10/Materials Scavenger-Mutant | -9/Materials Scavenger-Mutant | -9/Mines Mutant | -8/Materials Resources | -11 -10 -9 -9 -8 ----------- Run | Scr Mat Mat Min Mat Matter Collected 1229 | 269 77 280 166 437 Remotely . | . . . . . Salvage Created 2748 | . 125 845 238 1540 Parts 155 | . 9 56 20 70 Haulers Intercepted 8 | . . 5 . 3 Recyclers Shooed 1 | . . . . 1 Parts Field Recycled . | . . . . . Retrieved Matter . | . . . . . Parts Self-Destructed . | . . . . . Prevented . | . . . . . Kills | -11 -10 -9 -9 -8 ------- Run | Scr Mat Mat Min Mat Combat Hostiles Destroyed 51 | . 3 12 11 25 Melee 22 | . . . 2 20 Guns 25 | . 3 11 9 2 Cannons 3 | . . . . 3 Classes Destroyed 8 | . 1 6 . 1 Worker 1 | . . 1 . . Hauler 8 | . . 5 . 3 Recycler 1 | . . . . 1 Operator 3 | . . 1 . 2 Watcher 6 | . . 4 . 2 Swarmer 11 | . . 4 4 3 Grunt 29 | . 3 4 7 15 Sentry 11 | . . 4 . 7 Best Kill Streak 4 | . 1 4 4 3 Combat Bots Only 4 | . 1 4 4 3 Max Kills in Single Turn 1 | . 1 1 1 1 Gunslinging . | . . . . . Exploded . | . . . . . Melee 1 | . . . 1 1 Uniques/NPCs Destroyed . | . . . . . Combat | -11 -10 -9 -9 -8 -------- Run | Scr Mat Mat Min Mat Damage Taken 4391 | . 136 387 705 3163 Core 705 | . 50 24 77 554 Absorbed by Shields . | . . . . . Core Remaining (%) 84 | 100 80 . 74 . Volleys Fired 124 | . 14 47 31 32 Largest 2 | . 2 2 2 2 Hottest 134 | . 40 130 134 130 Shots Fired 219 | . 28 92 52 47 Gun 183 | . 28 92 52 11 Cannon 36 | . . . . 36 Launcher . | . . . . . Special . | . . . . . Kinetic 58 | . 28 30 . . Thermal 115 | . . 16 52 47 Explosive . | . . . . . Electromagnetic 46 | . . 46 . . Robot Hit Streak 17 | . 5 9 17 7 Robot Miss Streak 5 | . 2 3 5 4 Penetration Max . | . . . . . Secondary Targets 3 | . . . 3 . Max Gunslinging Chain 1 | . . . 1 . Shots Hit Robots 258 | . 21 71 49 117 Core Hits 144 | . 10 46 39 49 Critical Hits 2 | . . 1 . 1 Critical Kills 2 | . . 1 . 1 Critical Parts Destroyed . | . . . . . Melee Attacks 127 | . . . 4 123 Impact 14 | . . . . 14 Slashing 113 | . . . 4 109 Piercing . | . . . . . Sneak Attacks 7 | . . . . 7 Combat Hostiles . | . . . . . Follow-up Attacks 15 | . . . . 15 Damage Inflicted 4938 | . 202 996 684 3056 Guns 1840 | . 202 919 588 131 Cannons 536 | . . . . 536 Explosions 74 | . . 74 . . Melee 2485 | . . . 96 2389 Ramming 3 | . . 3 . . Kinetic 363 | . 202 161 . . Thermal 1466 | . . 211 588 667 Explosive . | . . . . . Electromagnetic 621 | . . 621 . . Impact 282 | . . . . 282 Slashing 2203 | . . . 96 2107 Piercing . | . . . . . Highest Corruption 2 | . . 1 1 2 Average Corruption 1 | . . 1 1 1 Corruption Purged . | . . . . . Effects 16 | . . 4 3 9 Message Errors 4 | . . 1 1 2 Energy Discharges 2 | . . . . 2 Data Loss (minor) 4 | . . 1 1 2 Targeting Errors 4 | . . . 1 3 Weapon Failures 2 | . . 2 . . Overload Shots . | . . . . . Overflow Damage 141 | . . 19 . 122 Projectiles 3 | . . . . 3 Explosions 19 | . . 19 . . Melee 119 | . . . . 119 Knockbacks . | . . . . . Impact . | . . . . . Kinetic . | . . . . . Secondary . | . . . . . Self-Inflicted Damage 45 | . . 45 . . Shots 1 | . . 1 . . Rammed 1 | . . 1 . . Targets Rammed 1 | . . 1 . . Kicked . | . . . . . Crushed . | . . . . . Highest Temperature 497 | . 18 126 252 497 Average Temperature 95 | . 10 24 79 182 Received Heat Transfer 1917 | . 75 117 195 1530 Effects 9 | . . . 2 7 Shutdowns 3 | . . . . 3 Energy Bleed 2 | . . . . 2 Interference 3 | . . . 2 1 Matter Decay 1 | . . . . 1 Siege Activations . | . . . . . Robots Corrupted 1 | . . 1 . . Combat Hostiles 1 | . . 1 . . Parts Fried 4 | . . 4 . . Impact Corruptions 3 | . . . . 3 Robots Melted . | . . . . . Combat Hostiles . | . . . . . Parts Melted . | . . . . . Heat Transferred 2206 | . . 275 858 1073 Parts Sabotaged . | . . . . . Parts Stolen . | . . . . . Parts Stripped . | . . . . . Power Chain Reactions 1 | . . 1 . . Missiles Intercepted . | . . . . . Alert | -11 -10 -9 -9 -8 ------- Run | Scr Mat Mat Min Mat Peak Influence 349 | . 95 263 162 349 Initial 39 | . . 39 33 23 Average 120 | . 45 141 44 166 Maximum Alert Level 1 | . . 1 . 1 Low Security (%) 83 | 100 100 89 100 63 Level 1 16 | . . 10 . 36 Level 2 . | . . . . . Level 3 . | . . . . . Level 4 . | . . . . . Level 5 . | . . . . . High Security . | . . . . . Max Security . | . . . . . Squads Dispatched 10 | . 1 1 1 7 Investigation 1 | . . . . 1 Extermination . | . . . . . Reinforcement 7 | . 1 1 1 4 Assault . | . . . . . Garrison 2 | . . . . 2 Intercept . | . . . . . Construction Impeded 2 | . . . 1 1 Haulers Reinforced . | . . . . . Stealth | -11 -10 -9 -9 -8 --------- Run | Scr Mat Mat Min Mat Distress Signals 4 | . . 3 . 1 Communications Jammed . | . . . . . Distress Signals . | . . . . . Times Spotted 93 | . 6 24 15 48 Peak Tracking Total 5 | . 2 4 4 5 Tactical Retreats 11 | . 1 1 1 8 Traps | -11 -10 -9 -9 -8 ------- Run | Scr Mat Mat Min Mat Traps Triggered 9 | . . 3 1 5 Indirectly . | . . . . . Trap Hack Attempts . | . . . . . Triggered . | . . . . . Disarmed . | . . . . . Reprogrammed . | . . . . . Reused . | . . . . . Traps Extracted . | . . . . . Installed . | . . . . . Triggered . | . . . . . Machines | -11 -10 -9 -9 -8 ---------- Run | Scr Mat Mat Min Mat Machines Disabled 5 | . . 1 2 2 Max in Single Turn 1 | . . 1 1 1 Garrison Access 1 | . . . . 1 Machines Sabotaged . | . . . . . Garrisons Compromised . | . . . . . Overloaded Fab Kills . | . . . . . Fab Network Shutdowns . | . . . . . Hacking | -11 -10 -9 -9 -8 --------- Run | Scr Mat Mat Min Mat Machines Accessed 4 | . 1 . 1 2 Terminals 2 | . 1 . . 1 Fabricators . | . . . . . Repair Stations . | . . . . . Recycling Units . | . . . . . Scanalyzers . | . . . . . Garrison Access 1 | . . . . 1 Total Hacks 7 | . 2 . 1 4 Successful 2 | . . . 1 1 Failed 5 | . 2 . . 3 Catastrophic 1 | . . . . 1 Database Lockouts . | . . . . . Manual 2 | . 1 . . 1 Terminals 3 | . 2 . . 1 Fabricators . | . . . . . Repair Stations . | . . . . . Recycling Units . | . . . . . Scanalyzers . | . . . . . Garrison Access 3 | . . . . 3 Terminal Hacks 1 | . . . 1 . Open Door 1 | . . . 1 . Fabricator Hacks . | . . . . . Repair Station Hacks . | . . . . . Recycling Unit Hacks . | . . . . . Scanalyzer . | . . . . . Garrison Access Hacks 1 | . . . . 1 Seal Access 1 | . . . . 1 Unauthorized Hacks . | . . . . . Terminals . | . . . . . Fabricators . | . . . . . Repair Stations . | . . . . . Recycling Units . | . . . . . Scanalyzers . | . . . . . Garrison Access . | . . . . . Data Cores Recovered . | . . . . . Used . | . . . . . Hacking Detections 2 | . 1 . . 1 Full Trace Events . | . . . . . Feedback Events . | . . . . . Feedback Blocked . | . . . . . Robot Schematics Acquired . | . . . . . Robots Built . | . . . . . Matter . | . . . . . Time . | . . . . . Total Robot Build Rating . | . . . . . Part Schematics Acquired . | . . . . . Parts Built . | . . . . . Matter . | . . . . . Time . | . . . . . Total Part Build Rating . | . . . . . Parts Repaired . | . . . . . Time . | . . . . . Parts Recycled . | . . . . . Recycled Matter . | . . . . . Retrieved Matter . | . . . . . Retrieved Components . | . . . . . Parts Scanalyzed . | . . . . . Part Schematics Acquired . | . . . . . Parts Damaged . | . . . . . Bothacking | -11 -10 -9 -9 -8 ------------ Run | Scr Mat Mat Min Mat Used RIF Installer . | . . . . . Robots Hacked . | . . . . . Non-combat . | . . . . . Combat . | . . . . . Robot Hacks Applied . | . . . . . Relay Couplers Released . | . . . . . Robots Rewired . | . . . . . Allies Hacked . | . . . . . Hacks Repelled . | . . . . . Allies | -11 -10 -9 -9 -8 -------- Run | Scr Mat Mat Min Mat Total Allies 4 | . . . 4 . Largest Group 4 | . . . 4 . Highest-Rated Group 71 | . . . 71 . Highest-Rated Ally 31 | . . . 31 . Total Orders . | . . . . . Ally Attacks 9 | . . . 9 . Total Damage 126 | . . . 126 . Kills 1 | . . . 1 . Allies Corrupted . | . . . . . Allies Melted . | . . . . . Intel | -11 -10 -9 -9 -8 ------- Run | Scr Mat Mat Min Mat Robot Analysis Total . | . . . . . Derelict Logs Recovered 1 | . . . 1 . Drone Launches . | . . . . . Drone Recoveries . | . . . . . Exploration | -11 -10 -9 -9 -8 ------------- Run | Scr Mat Mat Min Mat Turns Passed 4268 | 56 251 1407 1013 1541 Spaces Moved 2374 | 47 131 779 610 807 Core 41 | 19 . . . 22 Treads . | . . . . . Legs 2043 | 28 131 779 610 495 Wheels 290 | . . . . 290 Hover . | . . . . . Flight . | . . . . . Fastest Speed 50 | 50 120 120 120 80 Average Speed 135 | 97 132 142 141 128 Slowest Speed 700 | 150 150 150 150 700 Overloaded Moves . | . . . . . Propulsion Burnouts . | . . . . . Robots Hopped . | . . . . . Cave-ins Triggered . | . . . . . Exploration Rate (%) 53 | 4 29 72 81 82 Regions Visited 4 Branch Regions 1 Pre-discovered Areas 2 | . . . 2 . Known Exits Taken . | . . . . . Unknown Exits Taken 4 | 1 1 1 1 . Scrap Searched 3 | . . . 3 . Spaces Dug 2 | . . . . 2 Terrain Destroyed 17 | . . 3 . 14 Melee 2 | . . . . 2 Projectile 12 | . . . . 12 AOE 3 | . . 3 . . Terrain Rammed . | . . . . . Walls Destroyed . | . . . . . Machines Disabled . | . . . . . Actions | -11 -10 -9 -9 -8 --------- Run | Scr Mat Mat Min Mat Total 2981 | 54 182 992 700 1053 Wait 185 | . 29 102 30 24 Move 2370 | 46 130 778 609 807 Hop . | . . . . . Pick Up 33 | . 4 18 1 10 Fast Attach 53 | 7 1 14 3 28 Attach 8 | . . 3 1 4 Detach 3 | 1 . 1 1 . Swap 30 | . 2 6 11 11 Drop 65 | . 2 22 9 32 Fire 124 | . 14 47 31 32 Melee 109 | . . . 4 105 Ram . | . . . . . Kick 1 | . . 1 . . Crush . | . . . . . Escape Stasis . | . . . . . Rewire . | . . . . . Trap . | . . . . . Miscellaneous . | . . . . . Route ------- -11/Scrapyard -10/Materials -9/Materials (discovered 5 exits: *Mat x3 / *Min / [*Sto]) -9/Mines (discovered 3 exits: *Mat x2 / [*Exi]) -8/Materials (discovered 3 exits: [*Fac x3]) History --------- Turn | Location | Event 4 | -11/Scrapyard | Discovered new exit (range 16) 57 | -11/Scrapyard | Entered Materials 283 | -10/Materials | Discovered new exit (range 7) 308 | -10/Materials | Entered another Materials area 308 | -9/Materials | Evolved 2 slots: Propulsion x1, Utility x1 317 | -9/Materials | Build established: Mutant 561 | -9/Materials | Discovered new exit (range 16) 748 | -9/Materials | Discovered new exit (range 9) 999 | -9/Materials | Build established: Scavenger-Mutant 1092 | -9/Materials | Discovered new exit (range 15) 1561 | -9/Materials | Discovered new exit (range 8) 1700 | -9/Materials | Discovered new exit (range 11) 1715 | -9/Materials | Entered Mines 1834 | -9/Mines | Deemed a non-threat by the Exiles lab entrance 1834 | -9/Mines | Discovered new exit (range 5) 1884 | -9/Mines | Escorted by a lone wolf Derelict 1904 | -9/Mines | Learned location of Storage (-9) 2024 | -9/Mines | Discovered new exit (range 9) 2154 | -9/Mines | Discovered new exit (range 8) 2171 | -9/Mines | Assisted by bots powering up and referring to "LRC-V3" 2325 | -9/Mines | Met a Derelict who couldn't figure out how to use a Trap Extractor 2564 | -9/Mines | Lost 3 parts (1u2w) 2669 | -9/Mines | Joined a pair of Derelicts in attacking an 0b10 outpost 2680 | -9/Mines | Learned Materials stockpile data 2728 | -9/Mines | Entered Materials 2728 | -8/Materials | Evolved 2 slots: Propulsion x1, Utility x1 2979 | -8/Materials | Lost 4 parts (4n) 3220 | -8/Materials | Build established: Mutant 3287 | -8/Materials | Garrison activated, responded to threat 3402 | -8/Materials | Core integrity fell below 50% 3522 | -8/Materials | Lost 4 parts (3n1u) 3760 | -8/Materials | Discovered new exit (range 13) 4007 | -8/Materials | Discovered new exit (range 4) 4212 | -8/Materials | Discovered new exit (range 13) 4240 | -8/Materials | Core integrity fell below 20% 4269 | -8/Materials | Destroyed by G-47 Trooper with Particle Gun Last Messages --------------- 04222_ Carbon-fiber Leg destroyed. 04224_ Lgt. Armor Plating destroyed. 04227_ Destroyed Carbon-fiber Leg. 04238_ Aluminum Leg destroyed. 04239_ Destroyed Particle Gun. 04240_ Carbon-fiber Leg destroyed. 04248_ T-07 Excavator is excavating. 04251_ Lgt. Deuterium Engine destroyed. 04252_ T-07 Excavator is excavating. 04253_ G-47 Trooper destroyed. 04256_ Great Maul follow-up attack on G-50 Soldier. 04256_ Destroyed Backup Laser I. 04256_ G-50 Soldier system corrupted by crushing effect. 04256_ T-07 Excavator is excavating. 04265_ U-05 Engineer lays Concrete. 04267_ S8 JVLG|TOHF|ZRR,OOHU69P9O94F3 04267_ Triggered Alarm Trap. 04267_ An alarm sounds. 04267_ ALERT: Alarm triggered, dispatching investigation squad. 04267_ U-05 Engineer lays Concrete. Map ----- +----------------------------------------------------+ | #??# ##" """ #??# # """ #?#???????????????????? | | #??# ##T #??# #??"" # #???????????????????? | | #??# ##" #??#=##### # #???????????????????? | | #??# ##" !#??# #^ # #???????????????????? | | #??# ##" = #??#%# " # #???????????????????? | | #??# ## [#??# # " +???????????????????? | | #??# #########??#=# " #???????????????????? | | #??# #??????????# # # ##+?????????????????? | | #??# #??????????# # #???????????? | | #??# #??????????# ##+##### #???????????? | | #??# #??????????# ##### #???????????? | | #??# #??????????# #???????????? | | ###### #??????????# ########+## #???????????? | | ## #??????????# #??????????? #???????????? | | ## #??????????# #???????????? #???????????? | | ## #??????????#### #?????????????#???????????? | | ## #?????????????# #?????????????????????????? | | ## #?????????????# #?????????????????????????? | | ### #???????#######+#?????????????????????????? | | #?# #???????# #?????????????????????????? | | ###+######??# #?????????????????????????? | | # #??# #???????????? #???????????? | | #! #??# ###+####### ## ##???????? | | # #??# # u u #??????? | | # #??# + m g /??????? | | + #??# #g@%= g #??????? | | < # #??# ! #/#+####### < #???????????? | | # #??# # ! #??????????????????? | | #### #??# # ]][ !#??????????????????? | | ???# [ #??# # ]][ #??????????????????? | | ???##########??######### ][[ #??????????????????? | | ???????????????????????# !#??????????????????? | | ???????????????????????# #????????!?????????? | | ???????????????????????########??????????????????? | | ?????????????????????????????????????????????????? | | ?????????????????????????????????????????????????? | | ?????????????????????????????????????????????????? | | ?????????????????????????????????????????????????? | | | | | | | | | | | | | | | | | | | | | | | | | +----------------------------------------------------+ Best States ------------- Heat Dissipation 50 Energy Generation 15 Energy Capacity 265 Matter Stores 300 Matter Capacity 300 Sight Range 16 Terrain Scan Density 10 Armor Coverage 300 Utility Shielding 33 Weapon Shielding 66 Evasion (%) 50 Item Schematics ----------------- None Robot Schematics ------------------ None Fabricated ------------ Nothing Alien Tech Used ----------------- None Achievements -------------- None Challenges ------------ None Game ------ Seed BiocellTerrainSink Manual? 0 Play Time 00:32:21 Cumulative 84.6 hours Start 2021.03.23 @ 14:57:29 End 2021.03.23 @ 15:26:51 Sessions 1 Manual Loads 0 Difficulty Rogue Special Mode None Game No. 223 Rogue 70 Adventurer 148 Explorer 5 Win Type - Total 1 Types 1/0/0/0/0/0/0/0/0 Lore% 55 Gallery% 64 Achievement% 51 Wizard Run 0 Options --------- ASCII 0 Keyboard 0 Movement Numpad Keybinds 0 Fullscreen 1 Font 14/X11 Map View 84x54 Tactical HUD 1 Map Filters NONE Filters NONE Steam 1 RUN: de450b42-91b3-44bc-b0dd-c47a0c0c4cab